[Event "*** Titled Tuesday Blitz"]
[Site "Chess.com"]
[Date "2020.11.03"]
[Round "3"]
[White "infinitegiantkiller"]
[Black "AlexOstrovskiy"]
[Result "0-1"]
[WhiteElo "2453"]
[BlackElo "2792"]
[TimeControl "180+1"]
[EndTime "10:30:24 PST"]
[Termination "AlexOstrovskiy won by resignation"]

1. d4 {[%clk 0:03:00.9]} 1... Nf6 {[%clk 0:02:59.3]} 2. c4 {[%clk 0:02:57.2]}
2... e5 {[%clk 0:02:59.3]} 3. dxe5 {[%clk 0:02:54.7]} 3... Ng4 {[%clk
0:02:59.4]} 4. Nf3 {[%clk 0:02:54.8]} 4... Bc5 {[%clk 0:02:59]} 5. e3 {[%clk
0:02:54.3]} 5... Nc6 {[%clk 0:02:59.3]} 6. Nc3 {[%clk 0:02:54.5]} 6... O-O
{[%clk 0:02:58.2]} 7. a3 {[%clk 0:02:53.1]} 7... a5 {[%clk 0:02:57.7]} 8. b3
{[%clk 0:02:51.1]} 8... Re8 {[%clk 0:02:57.1]} 9. Bb2 {[%clk 0:02:51.1]} 9...
Ncxe5 {[%clk 0:02:57.4]} 10. Be2 {[%clk 0:02:51.6]} 10... Nxf3+ {[%clk
0:02:57.2]} 11. Bxf3 {[%clk 0:02:52.5]} 11... Ne5 {[%clk 0:02:57.8]} 12. Be2
{[%clk 0:02:52.2]} 12... Ra6 {[%clk 0:02:56.5]} 13. Qc2 {[%clk 0:02:52.1]} 13...
Rg6 {[%clk 0:02:53.7]} 14. g3 {[%clk 0:02:52]} 14... d6 {[%clk 0:02:44.6]} 15.
O-O-O {[%clk 0:02:51.2]} 15... Ng4 {[%clk 0:02:31.6]} 16. Bd3 {[%clk 0:02:46.3]}
16... Rh6 {[%clk 0:02:26.7]} 17. h3 {[%clk 0:02:44.6]} 17... Nxf2 {[%clk
0:02:25]} 18. h4 {[%clk 0:02:29.6]} 18... Bxe3+ {[%clk 0:02:22.1]} 19. Kb1
{[%clk 0:02:29.2]} 19... Nxh1 {[%clk 0:02:14.9]} 20. Rxh1 {[%clk 0:02:28.2]}
20... Bd4 {[%clk 0:02:03.9]} 21. Rd1 {[%clk 0:02:01]} 21... c5 {[%clk
0:01:53.7]} 22. Ka2 {[%clk 0:01:58.1]} 22... Bg4 {[%clk 0:01:53.1]} 23. Rf1
{[%clk 0:01:54.5]} 23... Rf6 {[%clk 0:01:48]} 24. Bxh7+ {[%clk 0:01:50.2]} 24...
Kf8 {[%clk 0:01:47.6]} 25. Rxf6 {[%clk 0:01:36.7]} 25... Qxf6 {[%clk 0:01:48.5]}
26. Be4 {[%clk 0:01:32.3]} 26... b6 {[%clk 0:01:35.1]} 27. Bc6 {[%clk
0:01:24.3]} 27... Re1 {[%clk 0:01:14]} 28. Qh7 {[%clk 0:01:16.9]} 28... g6
{[%clk 0:01:08.5]} 29. Qh6+ {[%clk 0:01:14.8]} 29... Kg8 {[%clk 0:00:54.5]} 30.
Qd2 {[%clk 0:00:59.8]} 30... Qe5 {[%clk 0:00:50.4]} 31. h5 {[%clk 0:00:55.9]}
31... Bxh5 {[%clk 0:00:46.4]} 32. Bd5 {[%clk 0:00:52.3]} 32... g5 {[%clk
0:00:42.4]} 33. Qh2 {[%clk 0:00:47.1]} 33... Bg6 {[%clk 0:00:40]} 34. Qd2 {[%clk
0:00:43.8]} 34... Kg7 {[%clk 0:00:35.2]} 35. g4 {[%clk 0:00:33.9]} 35... Qe3
{[%clk 0:00:30.6]} 36. Qh2 {[%clk 0:00:23.2]} 36... Bxc3 {[%clk 0:00:25.1]} 37.
Qxd6 {[%clk 0:00:23.1]} 37... Ra1+ {[%clk 0:00:17.2]} 38. Bxa1 {[%clk
0:00:21.6]} 38... Qd2+ {[%clk 0:00:16]} 0-1

[Event "*** Titled Tuesday Blitz"]
[Site "Chess.com"]
[Date "2020.11.03"]
[Round "3"]
[White "Pilopa"]
[Black "rududuyk"]
[Result "1-0"]
[WhiteElo "2480"]
[BlackElo "2172"]
[TimeControl "180+1"]
[EndTime "10:30:25 PST"]
[Termination "Pilopa won on time"]

1. d4 {[%clk 0:03:00.9]} 1... e6 {[%clk 0:03:00.2]} 2. c4 {[%clk 0:03:00.7]}
2... f5 {[%clk 0:03:00]} 3. Nf3 {[%clk 0:03:01.1]} 3... Nf6 {[%clk 0:03:00.4]}
4. Bg5 {[%clk 0:02:58.4]} 4... Bb4+ {[%clk 0:02:51.2]} 5. Nbd2 {[%clk
0:02:57.6]} 5... O-O {[%clk 0:02:50.7]} 6. e3 {[%clk 0:02:56.6]} 6... b6 {[%clk
0:02:44.4]} 7. Bd3 {[%clk 0:02:55.8]} 7... Bb7 {[%clk 0:02:44.8]} 8. O-O {[%clk
0:02:56.3]} 8... Qe8 {[%clk 0:02:44]} 9. Bxf6 {[%clk 0:02:47.1]} 9... Rxf6
{[%clk 0:02:42.8]} 10. e4 {[%clk 0:02:47.5]} 10... f4 {[%clk 0:02:16.9]} 11. e5
{[%clk 0:02:37.4]} 11... Rh6 {[%clk 0:02:14.3]} 12. Ne4 {[%clk 0:02:36.5]} 12...
Qh5 {[%clk 0:02:06.4]} 13. Qc1 {[%clk 0:02:26.8]} 13... Qg4 {[%clk 0:01:55.5]}
14. Qd1 {[%clk 0:01:02.6]} 14... Nc6 {[%clk 0:01:21.6]} 15. d5 {[%clk
0:01:00.4]} 15... Rg6 {[%clk 0:01:11.5]} 16. g3 {[%clk 0:00:43.7]} 16... Ne7
{[%clk 0:01:00.4]} 17. Nh4 {[%clk 0:00:36.3]} 17... Qxh4 {[%clk 0:00:54.4]} 18.
Nf6+ {[%clk 0:00:28.7]} 18... gxf6 {[%clk 0:00:43.5]} 19. Bxg6 {[%clk
0:00:28.8]} 19... Qh3 {[%clk 0:00:42.8]} 20. Be4 {[%clk 0:00:23.5]} 20... fxe5
{[%clk 0:00:36.3]} 21. Bg2 {[%clk 0:00:23.2]} 21... Qh6 {[%clk 0:00:31.8]} 22.
dxe6 {[%clk 0:00:21]} 22... Bxg2 {[%clk 0:00:29.2]} 23. exd7 {[%clk 0:00:20.3]}
23... Rd8 {[%clk 0:00:16.7]} 24. Kxg2 {[%clk 0:00:18.4]} 24... Nf5 {[%clk
0:00:13.4]} 25. Qd5+ {[%clk 0:00:18.1]} 25... Kf8 {[%clk 0:00:13.1]} 26. Rae1
{[%clk 0:00:16.9]} 26... Bd6 {[%clk 0:00:07.3]} 27. b4 {[%clk 0:00:16.4]} 27...
Rxd7 {[%clk 0:00:03]} 28. c5 {[%clk 0:00:16.6]} 28... bxc5 {[%clk 0:00:01.3]}
29. bxc5 {[%clk 0:00:17.5]} 29... Ne7 {[%clk 0:00:01.4]} 30. Qa8+ {[%clk
0:00:16.9]} 1-0

[Event "*** Titled Tuesday Blitz"]
[Site "Chess.com"]
[Date "2020.11.03"]
[Round "3"]
[White "tylityli"]
[Black "Rap_woyska"]
[Result "0-1"]
[WhiteElo "2269"]
[BlackElo "2512"]
[TimeControl "180+1"]
[EndTime "10:30:26 PST"]
[Termination "Rap_woyska won by resignation"]

1. d4 {[%clk 0:02:55.6]} 1... Nf6 {[%clk 0:02:59.2]} 2. c4 {[%clk 0:02:55.7]}
2... c5 {[%clk 0:02:59.2]} 3. d5 {[%clk 0:02:55.3]} 3... b5 {[%clk 0:02:59]} 4.
Nd2 {[%clk 0:02:54.9]} 4... e6 {[%clk 0:02:46.3]} 5. e4 {[%clk 0:02:53.7]} 5...
bxc4 {[%clk 0:02:45.9]} 6. Bxc4 {[%clk 0:02:53.1]} 6... exd5 {[%clk 0:02:46]} 7.
exd5 {[%clk 0:02:52.3]} 7... d6 {[%clk 0:02:40.6]} 8. Ngf3 {[%clk 0:02:48.1]}
8... Be7 {[%clk 0:02:39.4]} 9. O-O {[%clk 0:02:47.6]} 9... Nbd7 {[%clk
0:02:39.8]} 10. Re1 {[%clk 0:02:45.6]} 10... O-O {[%clk 0:02:40.2]} 11. Ne4
{[%clk 0:02:40.8]} 11... Nxe4 {[%clk 0:02:36.5]} 12. Rxe4 {[%clk 0:02:40.6]}
12... Nb6 {[%clk 0:02:35.8]} 13. b3 {[%clk 0:02:08.7]} 13... Bf5 {[%clk
0:02:29.7]} 14. Rf4 {[%clk 0:02:04.7]} 14... Bg6 {[%clk 0:02:28.1]} 15. Bd2
{[%clk 0:01:58.5]} 15... Nxc4 {[%clk 0:02:22.3]} 16. bxc4 {[%clk 0:01:52.1]}
16... Bf6 {[%clk 0:02:20.8]} 17. h4 {[%clk 0:01:40]} 17... Bxa1 {[%clk
0:02:16.7]} 18. Qxa1 {[%clk 0:01:39.6]} 18... Rb8 {[%clk 0:02:17.1]} 19. Qc3
{[%clk 0:01:34.8]} 19... Rb1+ {[%clk 0:02:16]} 20. Kh2 {[%clk 0:01:34.1]} 20...
Re8 {[%clk 0:01:46.8]} 21. Be3 {[%clk 0:01:27.2]} 21... Re4 {[%clk 0:01:40.6]}
22. Ng5 {[%clk 0:01:22.1]} 22... Rxf4 {[%clk 0:01:34.9]} 23. Bxf4 {[%clk
0:01:22]} 23... h6 {[%clk 0:01:33.1]} 24. Nf3 {[%clk 0:01:21.5]} 24... Be4
{[%clk 0:01:31]} 25. Bg3 {[%clk 0:01:20.8]} 25... Bxf3 {[%clk 0:01:18.2]} 26.
Qxf3 {[%clk 0:01:18.7]} 26... Rc1 {[%clk 0:01:14.6]} 27. Qb3 {[%clk 0:01:08.8]}
27... Qf6 {[%clk 0:01:06.5]} 28. Qb8+ {[%clk 0:01:05.3]} 28... Kh7 {[%clk
0:01:06.5]} 29. Qxd6 {[%clk 0:00:38.1]} 29... Qxd6 {[%clk 0:01:04.6]} 30. Bxd6
{[%clk 0:00:37.8]} 30... Rxc4 {[%clk 0:01:05.5]} 31. Be5 {[%clk 0:00:35.2]}
31... f6 {[%clk 0:01:05.3]} 32. Bd6 {[%clk 0:00:25.7]} 32... Kg6 {[%clk
0:01:04.6]} 33. Kg3 {[%clk 0:00:24.1]} 33... Kf5 {[%clk 0:01:04]} 34. Bf8 {[%clk
0:00:23.6]} 34... h5 {[%clk 0:00:53.3]} 35. d6 {[%clk 0:00:18.6]} 35... Rd4
{[%clk 0:00:47.6]} 36. d7 {[%clk 0:00:17.6]} 36... c4 {[%clk 0:00:41.4]} 37.
Bxg7 {[%clk 0:00:13.8]} 37... Rxd7 {[%clk 0:00:40.4]} 38. Bh6 {[%clk 0:00:13.9]}
38... c3 {[%clk 0:00:38.6]} 39. Be3 {[%clk 0:00:13.4]} 39... c2 {[%clk
0:00:38.2]} 0-1

[Event "*** Titled Tuesday Blitz"]
[Site "Chess.com"]
[Date "2020.11.03"]
[Round "3"]
[White "mc4chess"]
[Black "Semen_Khanin"]
[Result "0-1"]
[WhiteElo "2406"]
[BlackElo "2784"]
[TimeControl "180+1"]
[EndTime "10:30:27 PST"]
[Termination "Semen_Khanin won on time"]

1. e4 {[%clk 0:02:59.4]} 1... c5 {[%clk 0:02:59.7]} 2. Nf3 {[%clk 0:02:58.3]}
2... e6 {[%clk 0:03:00.1]} 3. d4 {[%clk 0:02:58.6]} 3... cxd4 {[%clk 0:03:01]}
4. Nxd4 {[%clk 0:02:59.4]} 4... Nc6 {[%clk 0:03:01.4]} 5. Nxc6 {[%clk
0:02:56.7]} 5... bxc6 {[%clk 0:03:00.5]} 6. c4 {[%clk 0:02:56.8]} 6... Nf6
{[%clk 0:02:55.5]} 7. Bd3 {[%clk 0:02:56.1]} 7... e5 {[%clk 0:02:49.5]} 8. O-O
{[%clk 0:02:55.6]} 8... Bc5 {[%clk 0:02:49.9]} 9. Nc3 {[%clk 0:02:54.9]} 9... d6
{[%clk 0:02:48]} 10. b3 {[%clk 0:02:51.6]} 10... O-O {[%clk 0:02:43.2]} 11. Bb2
{[%clk 0:02:49.1]} 11... Bd4 {[%clk 0:02:42.7]} 12. Qc2 {[%clk 0:02:47.9]} 12...
Nh5 {[%clk 0:02:28.5]} 13. Ne2 {[%clk 0:02:46.5]} 13... Bxb2 {[%clk 0:02:27.5]}
14. Qxb2 {[%clk 0:02:47.4]} 14... Qg5 {[%clk 0:02:21]} 15. Kh1 {[%clk 0:02:28]}
15... f5 {[%clk 0:02:15.4]} 16. exf5 {[%clk 0:02:24.4]} 16... Bxf5 {[%clk
0:02:15.6]} 17. Bxf5 {[%clk 0:02:24.4]} 17... Rxf5 {[%clk 0:02:15.8]} 18. Ng3
{[%clk 0:02:20.7]} 18... Nxg3+ {[%clk 0:02:14.9]} 19. fxg3 {[%clk 0:02:20.2]}
19... Raf8 {[%clk 0:02:13.6]} 20. Qe2 {[%clk 0:02:07]} 20... d5 {[%clk
0:02:04.9]} 21. cxd5 {[%clk 0:02:05]} 21... cxd5 {[%clk 0:02:04.4]} 22. Qb5
{[%clk 0:01:23]} 22... Rxf1+ {[%clk 0:01:59.8]} 23. Rxf1 {[%clk 0:01:23.9]}
23... Rxf1+ {[%clk 0:01:59.5]} 24. Qxf1 {[%clk 0:01:24.8]} 24... e4 {[%clk
0:01:59.3]} 25. Qd1 {[%clk 0:01:00.7]} 25... h6 {[%clk 0:01:54.1]} 26. Kg1
{[%clk 0:00:56.1]} 26... Qe5 {[%clk 0:01:47.7]} 27. Kf2 {[%clk 0:00:52.7]} 27...
d4 {[%clk 0:01:47.7]} 28. Qg4 {[%clk 0:00:47.4]} 28... Qd5 {[%clk 0:01:31]} 29.
Ke2 {[%clk 0:00:39.3]} 29... d3+ {[%clk 0:01:15.8]} 30. Kd2 {[%clk 0:00:09.7]}
30... h5 {[%clk 0:00:42.7]} 31. Qg6 {[%clk 0:00:06.8]} 31... e3+ {[%clk
0:00:26.6]} 32. Kxe3 {[%clk 0:00:05]} 32... d2 {[%clk 0:00:27]} 33. Qe8+ {[%clk
0:00:03.8]} 33... Kh7 {[%clk 0:00:27.2]} 0-1

[Event "*** Titled Tuesday Blitz"]
[Site "Chess.com"]
[Date "2020.11.03"]
[Round "3"]
[White "esrosenberg"]
[Black "RaneshRatnesan"]
[Result "1-0"]
[WhiteElo "2331"]
[BlackElo "2089"]
[TimeControl "180+1"]
[EndTime "10:30:27 PST"]
[Termination "esrosenberg won by resignation"]

1. Nf3 {[%clk 0:03:00.9]} 1... Nf6 {[%clk 0:02:57.8]} 2. c4 {[%clk 0:03:01]}
2... g6 {[%clk 0:02:58.7]} 3. Nc3 {[%clk 0:03:01.1]} 3... Bg7 {[%clk 0:02:59.4]}
4. e4 {[%clk 0:03:01.4]} 4... O-O {[%clk 0:03:00]} 5. d4 {[%clk 0:03:02]} 5...
d6 {[%clk 0:03:00.2]} 6. h3 {[%clk 0:03:02.6]} 6... c5 {[%clk 0:02:58.8]} 7. d5
{[%clk 0:03:02.6]} 7... a6 {[%clk 0:02:55.6]} 8. Bd3 {[%clk 0:03:02.3]} 8...
Nbd7 {[%clk 0:02:56.2]} 9. O-O {[%clk 0:02:58.7]} 9... Rb8 {[%clk 0:02:45.8]}
10. Qe2 {[%clk 0:02:56.8]} 10... Ne8 {[%clk 0:02:43.7]} 11. Bf4 {[%clk
0:02:52.4]} 11... Ne5 {[%clk 0:02:37.7]} 12. Nxe5 {[%clk 0:02:51.7]} 12... dxe5
{[%clk 0:02:37.8]} 13. Be3 {[%clk 0:02:39.3]} 13... b6 {[%clk 0:02:38]} 14. a4
{[%clk 0:02:37.5]} 14... a5 {[%clk 0:02:36.5]} 15. Rad1 {[%clk 0:02:23]} 15...
Nd6 {[%clk 0:02:36.5]} 16. b3 {[%clk 0:02:21.4]} 16... f5 {[%clk 0:02:36.2]} 17.
exf5 {[%clk 0:02:14.2]} 17... gxf5 {[%clk 0:02:37.1]} 18. Bb1 {[%clk 0:02:04]}
18... Qe8 {[%clk 0:02:35.6]} 19. Qc2 {[%clk 0:01:37.1]} 19... Qg6 {[%clk
0:02:27.9]} 20. Kh1 {[%clk 0:01:21.8]} 20... Bd7 {[%clk 0:02:27.8]} 21. Rg1
{[%clk 0:01:15.2]} 21... Qh5 {[%clk 0:02:26.8]} 22. Qe2 {[%clk 0:01:12.7]} 22...
Qh4 {[%clk 0:02:19]} 23. Bd2 {[%clk 0:00:54.1]} 23... Be8 {[%clk 0:02:10.1]} 24.
Be1 {[%clk 0:00:47.7]} 24... Bh5 {[%clk 0:02:07.6]} 25. f3 {[%clk 0:00:48]}
25... Qf6 {[%clk 0:02:06.7]} 26. g4 {[%clk 0:00:39.6]} 26... Bg6 {[%clk
0:02:06.6]} 27. Bg3 {[%clk 0:00:36.5]} 27... f4 {[%clk 0:02:03.7]} 28. Bf2
{[%clk 0:00:34.9]} 28... Bh6 {[%clk 0:02:03.8]} 29. Ne4 {[%clk 0:00:24.3]} 29...
Bxe4 {[%clk 0:02:00.4]} 30. Bxe4 {[%clk 0:00:24]} 30... Bg5 {[%clk 0:02:00.4]}
31. h4 {[%clk 0:00:18.4]} 31... h6 {[%clk 0:01:44.2]} 32. hxg5 {[%clk 0:00:18]}
32... hxg5 {[%clk 0:01:45.1]} 33. Kg2 {[%clk 0:00:15.1]} 33... Kg7 {[%clk
0:01:45.3]} 34. Rh1 {[%clk 0:00:15.2]} 34... Rh8 {[%clk 0:01:44.2]} 35. Rxh8
{[%clk 0:00:15.2]} 35... Rxh8 {[%clk 0:01:44.1]} 36. Rh1 {[%clk 0:00:15.5]}
36... Rxh1 {[%clk 0:01:32]} 37. Kxh1 {[%clk 0:00:16.4]} 37... Qh6+ {[%clk
0:01:25.2]} 38. Kg2 {[%clk 0:00:16.7]} 38... Kf6 {[%clk 0:01:25.3]} 39. Qf1
{[%clk 0:00:14.5]} 39... Qg7 {[%clk 0:01:24.4]} 40. Qh1 {[%clk 0:00:14.3]} 40...
Nf7 {[%clk 0:01:21.5]} 41. Qh5 {[%clk 0:00:12.9]} 41... Nd6 {[%clk 0:01:22]} 42.
Be1 {[%clk 0:00:11]} 42... e6 {[%clk 0:01:14.5]} 43. dxe6 {[%clk 0:00:09.6]}
43... Kxe6 {[%clk 0:01:15.4]} 44. Qg6+ {[%clk 0:00:09]} 44... Qxg6 {[%clk
0:01:15.2]} 45. Bxg6 {[%clk 0:00:09.9]} 45... Nc8 {[%clk 0:01:14.7]} 46. Bf5+
{[%clk 0:00:09.6]} 46... Kd6 {[%clk 0:01:10.4]} 47. Bxc8 {[%clk 0:00:10.5]}
47... Ke7 {[%clk 0:01:10.7]} 48. Bf5 {[%clk 0:00:10.6]} 48... Kf6 {[%clk
0:01:11.3]} 49. Bc3 {[%clk 0:00:11]} 49... Kf7 {[%clk 0:01:08.9]} 50. Bxe5
{[%clk 0:00:11.3]} 50... Ke7 {[%clk 0:01:09.8]} 51. Bc7 {[%clk 0:00:11.6]} 1-0

[Event "*** Titled Tuesday Blitz"]
[Site "Chess.com"]
[Date "2020.11.03"]
[Round "3"]
[White "Nachsueb"]
[Black "Chessbard1972"]
[Result "1-0"]
[WhiteElo "2061"]
[BlackElo "2294"]
[TimeControl "180+1"]
[EndTime "10:30:27 PST"]
[Termination "Nachsueb won by checkmate"]

1. c4 {[%clk 0:03:00.9]} 1... Nf6 {[%clk 0:02:58.1]} 2. Nc3 {[%clk 0:03:00.5]}
2... g6 {[%clk 0:02:58.4]} 3. e4 {[%clk 0:02:59.1]} 3... d6 {[%clk 0:02:58.8]}
4. d4 {[%clk 0:02:59.3]} 4... Bg7 {[%clk 0:02:59.2]} 5. f4 {[%clk 0:02:59.9]}
5... O-O {[%clk 0:02:59.5]} 6. Nf3 {[%clk 0:03:00.2]} 6... c5 {[%clk 0:02:58.9]}
7. d5 {[%clk 0:02:59.7]} 7... Bg4 {[%clk 0:02:58.9]} 8. Be2 {[%clk 0:02:59.2]}
8... e6 {[%clk 0:02:58]} 9. O-O {[%clk 0:02:52.3]} 9... exd5 {[%clk 0:02:57.4]}
10. cxd5 {[%clk 0:02:49.3]} 10... Nbd7 {[%clk 0:02:56.8]} 11. Nd2 {[%clk
0:02:47.4]} 11... Bxe2 {[%clk 0:02:55.9]} 12. Qxe2 {[%clk 0:02:48.2]} 12... Re8
{[%clk 0:02:55.4]} 13. Nc4 {[%clk 0:02:41]} 13... Nb6 {[%clk 0:02:53.2]} 14.
Nxb6 {[%clk 0:02:32.8]} 14... Qxb6 {[%clk 0:02:52.3]} 15. Kh1 {[%clk 0:02:32.6]}
15... a6 {[%clk 0:02:48]} 16. Qf3 {[%clk 0:02:17]} 16... Qc7 {[%clk 0:02:46.2]}
17. a4 {[%clk 0:02:15.7]} 17... Rab8 {[%clk 0:02:45.2]} 18. a5 {[%clk
0:02:13.4]} 18... b5 {[%clk 0:02:44.6]} 19. axb6 {[%clk 0:02:14.3]} 19... Rxb6
{[%clk 0:02:44.5]} 20. f5 {[%clk 0:02:14.5]} 20... Rb4 {[%clk 0:02:40.2]} 21.
fxg6 {[%clk 0:01:52.8]} 21... hxg6 {[%clk 0:02:37.6]} 22. Rxa6 {[%clk
0:01:39.4]} 22... Nxe4 {[%clk 0:02:36.3]} 23. Rc6 {[%clk 0:01:26.3]} 23... Qe7
{[%clk 0:02:30.5]} 24. Nxe4 {[%clk 0:01:10.4]} 24... Rxe4 {[%clk 0:02:28.8]} 25.
Bf4 {[%clk 0:01:09.8]} 25... Be5 {[%clk 0:02:21.4]} 26. Qxe4 {[%clk 0:01:06.4]}
26... f5 {[%clk 0:02:19.1]} 27. Qf3 {[%clk 0:00:54.7]} 27... Bxb2 {[%clk
0:02:16.7]} 28. Bxd6 {[%clk 0:00:51.7]} 28... Qe3 {[%clk 0:02:15.8]} 29. Qxe3
{[%clk 0:00:49.8]} 29... Rxe3 {[%clk 0:02:15.8]} 30. Bxc5 {[%clk 0:00:50.3]}
30... Rd3 {[%clk 0:02:13.2]} 31. d6 {[%clk 0:00:50.5]} 31... Kf7 {[%clk
0:02:12.9]} 32. Rc7+ {[%clk 0:00:48]} 32... Kf6 {[%clk 0:02:08.6]} 33. Re1
{[%clk 0:00:46.7]} 33... Bc3 {[%clk 0:02:07.8]} 34. Rc1 {[%clk 0:00:39.9]} 34...
Bb2 {[%clk 0:02:06.4]} 35. Rb1 {[%clk 0:00:39.3]} 35... Be5 {[%clk 0:02:04.9]}
36. Rc6 {[%clk 0:00:36.5]} 36... Kg5 {[%clk 0:02:03.2]} 37. h4+ {[%clk 0:00:34]}
37... Kxh4 {[%clk 0:01:58.7]} 38. Re1 {[%clk 0:00:30.1]} 38... Bg3 {[%clk
0:01:56.8]} 39. Rb1 {[%clk 0:00:25.4]} 39... f4 {[%clk 0:01:56.6]} 40. Rc7
{[%clk 0:00:24.7]} 40... g5 {[%clk 0:01:52.5]} 41. d7 {[%clk 0:00:24]} 41... g4
{[%clk 0:01:51.2]} 42. Be7+ {[%clk 0:00:20.2]} 42... Kh5 {[%clk 0:01:51.3]} 43.
Rc5+ {[%clk 0:00:19.2]} 43... Kg6 {[%clk 0:01:50.5]} 44. Rc6+ {[%clk 0:00:19.2]}
44... Kf7 {[%clk 0:01:50.2]} 45. Rd6 {[%clk 0:00:19.7]} 45... Rxd6 {[%clk
0:01:39.6]} 46. Bxd6 {[%clk 0:00:20.5]} 46... Bh4 {[%clk 0:01:40.5]} 47. Bc7
{[%clk 0:00:16.2]} 47... f3 {[%clk 0:01:39.5]} 48. gxf3 {[%clk 0:00:15.5]} 48...
gxf3 {[%clk 0:01:39.3]} 49. d8=Q {[%clk 0:00:15.7]} 49... Bxd8 {[%clk
0:01:39.1]} 50. Bxd8 {[%clk 0:00:16.3]} 50... Ke6 {[%clk 0:01:40]} 51. Bh4
{[%clk 0:00:16.1]} 51... Kf5 {[%clk 0:01:40.9]} 52. Kg1 {[%clk 0:00:15.6]} 52...
Kg4 {[%clk 0:01:41.8]} 53. Kf2 {[%clk 0:00:16.4]} 53... Kxh4 {[%clk 0:01:41.8]}
54. Kxf3 {[%clk 0:00:16.9]} 54... Kg5 {[%clk 0:01:42.7]} 55. Rb5+ {[%clk
0:00:16.1]} 55... Kf6 {[%clk 0:01:42.2]} 56. Ke4 {[%clk 0:00:16.4]} 56... Ke6
{[%clk 0:01:43.1]} 57. Rd5 {[%clk 0:00:16.8]} 57... Kf6 {[%clk 0:01:42.9]} 58.
Re5 {[%clk 0:00:16.9]} 58... Kg6 {[%clk 0:01:42.8]} 59. Rf5 {[%clk 0:00:17.1]}
59... Kh6 {[%clk 0:01:43.1]} 60. Ke5 {[%clk 0:00:18]} 60... Kg6 {[%clk
0:01:43.3]} 61. Ke6 {[%clk 0:00:18.6]} 61... Kg7 {[%clk 0:01:43.2]} 62. Rf6
{[%clk 0:00:18.5]} 62... Kg8 {[%clk 0:01:43.2]} 63. Rf7 {[%clk 0:00:18.5]} 63...
Kh8 {[%clk 0:01:43.1]} 64. Kf6 {[%clk 0:00:19.4]} 64... Kg8 {[%clk 0:01:43.4]}
65. Kg6 {[%clk 0:00:20.3]} 65... Kh8 {[%clk 0:01:43.3]} 66. Rf8# {[%clk
0:00:20.6]} 1-0

[Event "*** Titled Tuesday Blitz"]
[Site "Chess.com"]
[Date "2020.11.03"]
[Round "3"]
[White "dretch"]
[Black "sokidze"]
[Result "1-0"]
[WhiteElo "2820"]
[BlackElo "2535"]
[TimeControl "180+1"]
[EndTime "10:30:30 PST"]
[Termination "dretch won by resignation"]

1. d4 {[%clk 0:03:00.9]} 1... Nf6 {[%clk 0:02:59.8]} 2. c4 {[%clk 0:03:01.1]}
2... e6 {[%clk 0:02:59.9]} 3. Nc3 {[%clk 0:03:01.6]} 3... Bb4 {[%clk 0:02:59.7]}
4. Qc2 {[%clk 0:03:02.1]} 4... d5 {[%clk 0:02:59.6]} 5. cxd5 {[%clk 0:03:02]}
5... exd5 {[%clk 0:03:00.5]} 6. Bg5 {[%clk 0:03:00.8]} 6... h6 {[%clk
0:03:00.2]} 7. Bxf6 {[%clk 0:02:57.3]} 7... Qxf6 {[%clk 0:03:00]} 8. a3 {[%clk
0:02:57.7]} 8... Bxc3+ {[%clk 0:02:52.2]} 9. Qxc3 {[%clk 0:02:57.5]} 9... O-O
{[%clk 0:02:52.8]} 10. e3 {[%clk 0:02:57.7]} 10... Bf5 {[%clk 0:02:47.6]} 11.
Ne2 {[%clk 0:02:57.6]} 11... Nd7 {[%clk 0:02:46.2]} 12. Ng3 {[%clk 0:02:53.6]}
12... Be6 {[%clk 0:02:24.5]} 13. Qxc7 {[%clk 0:02:38.6]} 13... Rfc8 {[%clk
0:02:00.1]} 14. Qf4 {[%clk 0:02:35.6]} 14... Qxf4 {[%clk 0:01:42.6]} 15. exf4
{[%clk 0:02:35.4]} 15... Nb6 {[%clk 0:01:43.3]} 16. Bd3 {[%clk 0:02:25.7]} 16...
Na4 {[%clk 0:01:35]} 17. Rb1 {[%clk 0:02:10.8]} 17... a6 {[%clk 0:01:14.8]} 18.
Kd2 {[%clk 0:02:04.7]} 18... Bd7 {[%clk 0:01:05.5]} 19. b3 {[%clk 0:02:00.8]}
19... Nc3 {[%clk 0:01:03]} 20. Rbc1 {[%clk 0:02:01]} 20... Nb5 {[%clk 0:01:02]}
21. Rxc8+ {[%clk 0:01:51.4]} 21... Rxc8 {[%clk 0:01:01.5]} 22. Bxb5 {[%clk
0:01:48.8]} 22... Bxb5 {[%clk 0:00:58.9]} 23. Rc1 {[%clk 0:01:43.8]} 23... Bc6
{[%clk 0:00:51.3]} 24. f5 {[%clk 0:01:37.1]} 24... Kf8 {[%clk 0:00:42.7]} 25.
Nh5 {[%clk 0:01:32.3]} 25... Re8 {[%clk 0:00:38.1]} 26. Re1 {[%clk 0:01:27.2]}
26... Rd8 {[%clk 0:00:28.4]} 27. g4 {[%clk 0:01:24.5]} 27... Bd7 {[%clk
0:00:12.6]} 28. f3 {[%clk 0:01:22.8]} 28... Re8 {[%clk 0:00:09.5]} 29. Rxe8+
{[%clk 0:01:21.1]} 29... Bxe8 {[%clk 0:00:10.4]} 30. f6 {[%clk 0:01:18.2]} 30...
g6 {[%clk 0:00:09.7]} 31. Nf4 {[%clk 0:01:17.9]} 31... Bc6 {[%clk 0:00:10.2]}
32. Nd3 {[%clk 0:01:15.8]} 32... Ke8 {[%clk 0:00:08.4]} 33. Ne5 {[%clk 0:01:16]}
33... Bd7 {[%clk 0:00:09.1]} 34. h4 {[%clk 0:01:14.4]} 34... Be6 {[%clk
0:00:07.6]} 35. Kc3 {[%clk 0:00:52.1]} 35... Kd8 {[%clk 0:00:06.8]} 36. Kb4
{[%clk 0:00:52.1]} 36... Kc7 {[%clk 0:00:05.6]} 37. Ka5 {[%clk 0:00:52.2]} 37...
Kc8 {[%clk 0:00:01.4]} 38. Kb6 {[%clk 0:00:52.1]} 38... Kb8 {[%clk 0:00:01.4]}
39. a4 {[%clk 0:00:48.7]} 39... Kc8 {[%clk 0:00:02.1]} 40. b4 {[%clk 0:00:48.6]}
40... Kb8 {[%clk 0:00:02.6]} 41. b5 {[%clk 0:00:48.1]} 41... axb5 {[%clk
0:00:03.3]} 42. axb5 {[%clk 0:00:48.4]} 42... Kc8 {[%clk 0:00:03.9]} 43. Kc5
{[%clk 0:00:48.6]} 43... Kc7 {[%clk 0:00:04.2]} 44. b6+ {[%clk 0:00:49]} 44...
Kc8 {[%clk 0:00:04.7]} 45. Kd6 {[%clk 0:00:49.3]} 45... Kd8 {[%clk 0:00:05.1]}
46. Nxg6 {[%clk 0:00:47]} 1-0